bitfinex/quotes_BTCUSD_20220120
["timestamp","ask_amount","ask_price","bid_price","bid_amount"]
[1642716211478,0.29325864,41418.0,41404.0,0.21378762]
[1642716211722,0.01203,41439.0,41401.0,1.39325864]
[1642716211723,0.14464154,41438.0,41405.0,0.00673]
[1642716211920,0.00027294,41440.0,41405.0,0.00673]
[1642716212122,0.00027294,41440.0,41409.0,0.31102493]
[1642716212123,0.0012326,41415.0,41409.0,0.31102493]
[1642716212330,0.0037,41418.0,41410.0,0.17833101]
[1642716212521,0.00355475,41418.0,41417.0,0.17076642]
[1642716212721,0.00355475,41418.0,41414.0,0.00673]
[1642716212921,0.00355475,41418.0,41413.0,0.00128805]
[1642716213420,0.33718274,41421.0,41414.0,0.00020993]
[1642716213621,0.00121856,41426.0,41418.0,0.18301298]
[1642716214223,0.00027518,41433.0,41423.0,0.19228614]
[1642716214422,0.0408,41446.0,41423.0,0.19228614]
[1642716214423,0.00123422,41443.0,41427.0,0.00129967]
[1642716214624,0.46253994,41454.0,41428.0,0.00129217]
[1642716214625,0.00126001,41453.0,41428.0,0.00129217]
[1642716214824,0.00126001,41453.0,41435.0,0.00125603]
[1642716214825,0.27637958,41444.0,41435.0,0.00125603]
[1642716215663,0.2815,41454.0,41435.0,0.00125603]
[1642716215862,0.14345395,41452.0,41442.0,0.16654902]
[1642716216061,0.028,41444.0,41442.0,0.16654902]
[1642716216262,0.028,41444.0,41437.0,0.00020971]
[1642716216463,1.1,41442.0,41425.0,0.00124012]
[1642716216665,1.1,41442.0,41419.0,0.00673]
[1642716216666,0.00128532,41437.0,41419.0,0.00673]
[1642716217060,0.00128532,41437.0,41419.0,0.21930899]
[1642716217266,0.18331297,41437.0,41419.0,0.00673]
[1642716217463,0.30184698,41436.0,41422.0,0.00673]
[1642716217663,0.30184698,41436.0,41418.0,0.00673]
[1642716217861,0.18331297,41437.0,41418.0,0.00673]
[1642716218062,0.18331297,41437.0,41424.0,0.088]
[1642716218063,0.27433817,41430.0,41424.0,0.088]
[1642716218262,0.16666722,41426.0,41424.0,0.088]
[1642716218464,0.735356,41425.0,41424.0,0.088]
[1642716218663,0.6,41424.0,41413.0,0.00124222]
[1642716218865,0.34409203,41423.0,41413.0,0.00124222]
[1642716219063,0.6,41424.0,41413.0,0.00124222]
[1642716219324,0.28297362,41421.0,41416.0,0.16817347]
[1642716219527,0.16666722,41426.0,41416.0,0.16817347]
[1642716219725,0.1,41434.0,41416.0,0.16817347]
[1642716219924,0.00128304,41425.0,41416.0,0.16817347]
[1642716220324,0.01671755,41426.0,41416.0,0.16817347]
[1642716220524,0.29971836,41433.0,41423.0,0.00123635]
[1642716220727,0.00128528,41443.0,41429.0,0.15989129]
[1642716220926,0.30602281,41447.0,41434.0,0.00127356]
[1642716221323,0.0012491,41450.0,41447.0,0.007977]
[1642716221525,0.385356,41449.0,41447.0,0.007977]
[1642716221724,0.33599597,41449.0,41447.0,0.007977]
[1642716222124,1.63507436,41448.0,41435.0,0.06017494]
[1642716222326,0.0012508,41443.0,41435.0,0.06017494]
[1642716222524,0.385353,41442.0,41435.0,0.06017494]
[1642716222728,0.385353,41442.0,41425.0,0.00124355]
[1642716222967,0.29971836,41441.0,41435.0,0.00017495]
[1642716223168,0.0012508,41443.0,41435.0,0.00017495]
[1642716223672,0.05,41461.0,41444.0,0.00126709]
[1642716223874,0.03309352,41475.0,41464.0,0.20235864]
[1642716224081,0.02059494,41482.0,41465.0,0.052683]
[1642716224082,0.03920589,41481.0,41465.0,0.052683]
[1642716224271,0.008592,41482.0,41463.0,0.00129217]
[1642716224470,0.28364886,41473.0,41463.0,0.00129217]
[1642716225273,0.13578131,41477.0,41463.0,0.00129217]
[1642716225473,0.13578131,41477.0,41465.0,0.14114998]
[1642716225671,0.13578131,41477.0,41469.0,0.01117783]
[1642716225974,0.00129341,41474.0,41469.0,7.83e-06]
[1642716226172,0.385353,41470.0,41453.0,0.00125545]
[1642716226372,0.00129341,41474.0,41458.0,0.1926486]
[1642716226571,0.019,41477.0,41463.0,0.00123839]
[1642716226823,0.014,41477.0,41463.0,0.00123839]
[1642716227022,0.014,41477.0,41468.0,0.14346811]
[1642716227223,0.014,41477.0,41463.0,0.00123839]
[1642716227422,0.00123378,41483.0,41463.0,0.00123839]
[1642716227826,0.03719401,41484.0,41463.0,0.00123839]
[1642716227827,0.00473502,41484.0,41463.0,0.00123839]
[1642716228225,0.00473502,41484.0,41467.0,0.17646439]
[1642716228226,0.16241457,41478.0,41467.0,0.17646439]
[1642716228425,0.16241457,41478.0,41463.0,0.00223839]
[1642716228624,0.68479287,41477.0,41463.0,0.001]
[1642716228827,0.68479287,41477.0,41449.0,0.00125773]
[1642716228828,0.03620683,41469.0,41449.0,0.00125773]
[1642716229027,1.1,41470.0,41435.0,0.1870037]
[1642716229028,0.9986699,41468.0,41435.0,0.1870037]
[1642716229230,0.33097442,41443.0,41435.0,0.00018019]
[1642716229428,0.33097442,41443.0,41435.0,0.1865313]
[1642716229627,0.33097442,41443.0,41435.0,0.00018019]
[1642716229826,0.054446,41442.0,41435.0,0.00018019]
[1642716230033,0.049446,41442.0,41427.0,0.00673]
[1642716230230,0.32597442,41443.0,41435.0,0.02217947]
[1642716230498,0.385372,41442.0,41435.0,0.02217947]
[1642716230689,0.385372,41441.0,41435.0,0.02217947]
[1642716230890,0.05,41442.0,41436.0,3.362164]
[1642716231192,2.10949772,41455.0,41435.0,0.02217947]
[1642716231193,0.00123809,41452.0,41437.0,0.385372]
[1642716231391,0.00123809,41452.0,41436.0,0.508625]
[1642716231590,0.0012403,41454.0,41435.0,0.00017947]
[1642716231790,0.0012403,41454.0,41435.0,0.15503022]
[1642716231791,0.385364,41453.0,41435.0,0.15503022]
[1642716231992,0.25988839,41441.0,41435.0,0.15503022]
[1642716232193,0.00109423,41449.0,41435.0,0.15503022]
[1642716232391,0.375364,41448.0,41435.0,0.14985075]
[1642716232592,0.04005116,41448.0,41435.0,0.00017947]
[1642716232793,1.1448855,41446.0,41430.0,0.00123619]
[1642716232996,0.43238909,41445.0,41416.0,0.00673]
[1642716233193,0.2613023,41441.0,41418.0,0.00125078]
[1642716233391,0.28126381,41423.0,41418.0,0.00125078]
[1642716233597,0.6162778,41423.0,41418.0,0.13849734]
[1642716233792,0.6162778,41423.0,41410.0,0.00233231]
[1642716233793,0.935365,41422.0,41410.0,0.00233231]
[1642716233993,0.2309128,41423.0,41411.0,0.00673]
[1642716234221,0.01,41423.0,41412.0,0.013664]
[1642716234419,0.01,41423.0,41413.0,0.060351]
[1642716234618,0.11034551,41440.0,41419.0,0.17642291]
[1642716234619,0.00120678,41434.0,41419.0,0.17642291]
[1642716234823,0.17781083,41418.0,41410.0,0.0011]
[1642716235021,0.00125791,41425.0,41410.0,0.0011]
[1642716235219,0.385365,41424.0,41410.0,0.0011]
[1642716235419,0.34722942,41423.0,41410.0,0.0011]
[1642716235621,0.49369784,41422.0,41410.0,0.0011]
[1642716235820,0.49369784,41422.0,41410.0,0.0001]
[1642716235821,0.0012808,41418.0,41410.0,0.0001]
[1642716236022,0.0012808,41418.0,41403.0,0.0011]
[1642716236023,0.49184976,41417.0,41403.0,0.0011]
[1642716236220,0.79126812,41417.0,41403.0,0.0011]
[1642716236425,0.4212808,41418.0,41411.0,0.00673]
[1642716236426,0.405,41418.0,41411.0,0.00673]
[1642716236622,0.008,41422.0,41416.0,0.00126206]
[1642716236819,0.00650904,41448.0,41416.0,0.15126206]
[1642716236820,3.03899913,41447.0,41416.0,0.15126206]
[1642716237020,0.00650904,41448.0,41423.0,0.1449975]
[1642716237021,0.14492404,41443.0,41423.0,0.1449975]
[1642716237222,0.14492404,41443.0,41420.0,0.00673]
[1642716237223,0.12070155,41442.0,41420.0,0.00673]
[1642716237420,0.12040155,41442.0,41429.0,0.00020816]
[1642716237622,0.385365,41441.0,41429.0,0.00020816]
[1642716237965,0.14462404,41443.0,41429.0,0.00020816]
[1642716237966,0.48112267,41443.0,41429.0,0.00020816]
[1642716238170,0.046,41441.0,41432.0,0.16671274]
[1642716238569,0.385368,41440.0,41433.0,0.00020813]
[1642716238768,1.54571723,41439.0,41422.0,0.00120649]
[1642716238968,3.59486572,41439.0,41422.0,0.00120649]
[1642716239167,3.59486572,41439.0,41417.0,0.00128624]
[1642716239369,3.59486572,41439.0,41418.0,0.21966277]
[1642716239566,1.485368,41439.0,41415.0,0.18877381]
[1642716239767,2.4026995,41438.0,41415.0,0.18877381]
[1642716239967,0.06036405,41432.0,41415.0,0.18877381]
[1642716240166,0.67856978,41431.0,41416.0,0.05984]
[1642716240568,0.060372,41429.0,41416.0,0.05984]
[1642716240772,0.385368,41425.0,41415.0,0.009]
[1642716240968,0.385368,41425.0,41400.0,0.01652]
[1642716240969,1.1,41420.0,41400.0,0.01652]
[1642716241168,0.05984,41418.0,41400.0,0.01652]
[1642716241367,0.16494426,41407.0,41400.0,0.0001]
[1642716241568,0.3028267,41403.0,41400.0,0.0001]
[1642716241815,0.3028267,41403.0,41401.0,2.548076]
[1642716242014,0.3028267,41403.0,41400.0,0.0001]
[1642716242015,0.05984,41402.0,41400.0,0.0001]
[1642716242217,0.3028267,41403.0,41379.0,0.25011331]
[1642716242218,1.09474512,41400.0,41379.0,0.25011331]
[1642716242417,1.145208,41401.0,41387.0,0.00122704]
[1642716242418,1.1,41398.0,41387.0,0.00122704]
[1642716242617,1.1,41398.0,41379.0,0.00128644]
[1642716242618,0.385368,41394.0,41379.0,0.00128644]
[1642716242816,0.26297265,41392.0,41373.0,0.26092931]
[1642716243019,0.00121496,41386.0,41382.0,0.514192]
[1642716243219,0.05984,41390.0,41383.0,0.013822]
[1642716243420,0.05984,41390.0,41383.0,0.01503646]
[1642716243616,0.05984,41390.0,41374.0,0.29320178]
[1642716243817,0.05984,41390.0,41384.0,1.061622]
[1642716244017,0.05984,41388.0,41382.0,0.366671]
[1642716244217,0.05984,41388.0,41373.0,0.0011]
[1642716244218,0.385368,41387.0,41377.0,0.16576052]
[1642716244417,0.05984,41386.0,41377.0,0.16576052]
[1642716244620,0.72394651,41385.0,41373.0,0.0011]
[1642716244818,0.05854063,41384.0,41373.0,0.0011]
[1642716245019,0.385368,41383.0,41373.0,0.0001]
[1642716245222,0.385368,41383.0,41360.0,0.0002]
[1642716245223,0.06043968,41379.0,41360.0,0.0002]
[1642716245480,0.06043968,41379.0,41350.0,0.60701604]
[1642716245481,0.00125495,41366.0,41356.0,0.167662]
[1642716245675,0.00056457,41366.0,41356.0,0.167662]
[1642716245873,0.05854063,41360.0,41357.0,0.528389]
[1642716246175,0.05854063,41360.0,41356.0,0.167662]
[1642716246176,0.05854063,41360.0,41358.0,0.003873]
[1642716246372,0.05854063,41360.0,41356.0,0.167662]
[1642716246574,0.80854063,41357.0,41350.0,0.0012]
[1642716246775,0.80854063,41357.0,41338.0,0.80437186]
[1642716246776,0.453058,41356.0,41338.0,0.001]
[1642716246974,0.00124728,41349.0,41338.0,0.001]
[1642716247173,0.385398,41348.0,41338.0,0.001]
[1642716247373,0.05854063,41347.0,41341.0,3.186557]
[1642716247573,0.49914377,41346.0,41341.0,2.927156]
[1642716247778,0.49914377,41346.0,41324.0,0.0012684]
[1642716247779,0.38664506,41342.0,41320.0,0.0002]
[1642716247981,1.1,41337.0,41320.0,0.0002]
[1642716248180,1.1,41334.0,41319.0,0.609968]
[1642716248376,0.67859978,41333.0,41319.0,0.609968]
[1642716248583,0.05,41330.0,41299.0,0.70295038]
[1642716248779,0.05,41330.0,41298.0,0.0011]
[1642716248780,5.18357588,41329.0,41301.0,0.1867012]
[1642716248977,1.37252894,41328.0,41295.0,0.71400838]
[1642716249223,1.37252894,41328.0,41289.0,0.81069191]
[1642716249224,0.05,41320.0,41290.0,0.71530838]
[1642716249422,0.05,41320.0,41290.0,0.0013]
[1642716249423,1.1,41317.0,41290.0,0.0013]
[1642716249624,0.67859978,41316.0,41290.0,0.0013]
[1642716249823,0.15545267,41301.0,41290.0,0.0013]
[1642716250023,0.05,41311.0,41290.0,0.0013]
[1642716250024,0.32952301,41294.0,41290.0,0.0013]
[1642716250227,0.32952301,41294.0,41282.0,0.001]
[1642716250228,0.38665697,41293.0,41282.0,0.001]
[1642716250426,0.38665697,41293.0,41277.0,0.0011]
[1642716250427,0.00125632,41287.0,41277.0,0.0011]
[1642716250625,0.44597703,41286.0,41277.0,0.0011]
[1642716250824,1.1,41281.0,41270.0,0.0002]
[1642716251025,0.00123581,41271.0,41270.0,0.0002]
[1642716251226,0.00123581,41271.0,41250.0,0.71120838]
[1642716251227,1.48663381,41271.0,41250.0,0.71120838]
[1642716251427,1.48663381,41271.0,41231.0,0.03185]
[1642716251428,0.29320178,41270.0,41242.0,0.00129848]
[1642716251626,0.435398,41269.0,41240.0,0.80357186]
[1642716251926,0.060605,41277.0,41240.0,0.80357186]
[1642716251927,0.1,41290.0,41269.0,0.45682172]
[1642716252124,2.35467838,41293.0,41270.0,0.29320178]
[1642716252330,0.05,41286.0,41275.0,0.00126731]
[1642716252526,0.29320178,41299.0,41281.0,0.00128237]
[1642716252725,0.05,41294.0,41281.0,0.00128237]
[1642716252981,0.05,41294.0,41286.0,0.00120465]
[1642716253183,0.04500001,41294.0,41287.0,0.21067629]
[1642716253386,0.13266202,41328.0,41286.0,0.00120465]
[1642716253387,0.008592,41331.0,41310.0,0.21900931]
[1642716253584,0.008592,41331.0,41293.0,0.00126763]
[1642716253585,0.05,41321.0,41298.0,0.00128529]
[1642716253782,0.29320178,41320.0,41305.0,0.00122877]
[1642716253985,0.33506442,41309.0,41295.0,0.0408]
[1642716254182,0.33506442,41309.0,41307.0,0.00020325]
[1642716254183,0.29320178,41308.0,41307.0,0.00020325]
[1642716254382,0.23118506,41309.0,41297.0,0.0008132]
[1642716254383,0.384029,41307.0,41297.0,0.0008132]
[1642716254582,0.00124547,41306.0,41297.0,0.0008132]
[1642716254783,0.00124547,41306.0,41300.0,0.15187882]
[1642716254984,0.05,41312.0,41301.0,0.005339]
[1642716255185,0.05,41312.0,41301.0,0.29854078]
[1642716255384,0.05,41312.0,41305.0,0.005331]
[1642716255584,0.20025723,41344.0,41309.0,0.005327]
[1642716255791,0.8764,41346.0,41304.0,0.00127534]
[1642716255792,0.05,41328.0,41317.0,0.28364554]
[1642716255984,0.05,41330.0,41319.0,0.06174828]
[1642716256187,0.05,41330.0,41327.0,0.21230835]
[1642716256386,0.00118752,41360.0,41332.0,0.00121943]
[1642716256387,0.05,41339.0,41332.0,0.00121943]
[1642716256752,0.21217134,41364.0,41334.0,0.1]
[1642716256753,0.00129056,41355.0,41334.0,0.1]
[1642716256952,0.00129056,41355.0,41341.0,0.00125352]
[1642716257153,0.25364565,41361.0,41347.0,0.00126545]
[1642716257349,0.25364565,41361.0,41342.0,0.1446508]
[1642716257350,0.05,41358.0,41346.0,0.16879469]
[1642716257548,0.05,41358.0,41347.0,0.046047]
[1642716257749,0.05,41358.0,41347.0,0.0408]
[1642716257949,0.29455848,41357.0,41347.0,0.0408]
[1642716258252,0.05,41358.0,41349.0,0.14391516]
[1642716258253,0.065,41358.0,41349.0,0.14391516]
[1642716258550,0.065,41358.0,41352.0,0.19579801]
[1642716258752,0.35951708,41382.0,41357.0,0.00125713]
[1642716258753,0.05,41362.0,41357.0,0.00125713]
[1642716258951,0.16404992,41382.0,41375.0,0.00129258]
[1642716258952,0.05,41379.0,41375.0,0.00129258]
[1642716259151,0.0498,41379.0,41376.0,0.0408]
[1642716259353,0.0498,41379.0,41378.0,0.1305158]
[1642716259551,0.0498,41379.0,41378.0,0.12719457]
[1642716259752,2.629333,41379.0,41378.0,0.17319757]
[1642716260054,1.25482475,41379.0,41378.0,1.31928205]
[1642716260253,0.05,41386.0,41384.0,0.15127888]
[1642716260469,0.21867806,41392.0,41384.0,0.15127888]
[1642716260470,0.21867806,41392.0,41385.0,0.18536265]
[1642716260670,0.05,41390.0,41385.0,0.18017465]
[1642716261071,0.15,41389.0,41385.0,0.0408]
[1642716261270,0.15,41389.0,41378.0,0.011]
[1642716261271,0.385417,41388.0,41378.0,0.011]
[1642716261470,0.385417,41388.0,41367.0,0.13427183]
[1642716261471,0.17072099,41380.0,41360.0,0.17474365]
[1642716261670,0.24473388,41385.0,41367.0,0.00120602]
[1642716261872,0.05,41381.0,41368.0,0.0408]
[1642716262270,0.05,41381.0,41372.0,0.00125225]
[1642716262471,0.16393263,41399.0,41379.0,0.00123891]
[1642716262671,0.29334307,41401.0,41385.0,0.00121812]
[1642716262672,0.00481524,41395.0,41385.0,0.00121812]
[1642716262872,0.43106372,41393.0,41385.0,0.00121812]
[1642716263072,0.43106372,41393.0,41384.0,0.0408]
[1642716263073,0.18429294,41392.0,41384.0,0.0408]
[1642716263473,0.29455848,41392.0,41384.0,0.0408]
[1642716263673,0.43106372,41393.0,41384.0,0.0408]
[1642716263872,0.00120425,41390.0,41389.0,0.00124347]
[1642716264075,0.00120425,41390.0,41389.0,1.14204347]
[1642716264328,0.00481629,41396.0,41389.0,1.14204347]
[1642716264329,0.00481629,41396.0,41392.0,0.00531273]
[1642716264531,0.03674733,41412.0,41396.0,0.6]
[1642716264728,0.03674733,41412.0,41407.0,0.00127995]
[1642716265025,0.24863808,41410.0,41406.0,0.15468544]
[1642716265227,0.03674733,41412.0,41407.0,0.17100218]
[1642716265424,0.03674733,41412.0,41408.0,0.005145]
[1642716266227,0.03674733,41412.0,41401.0,0.0408]
[1642716266228,0.02974733,41412.0,41401.0,0.0408]
[1642716266426,0.00129831,41411.0,41409.0,7.92739]
[1642716266632,0.02974733,41412.0,41409.0,0.00124837]
[1642716266827,0.18614808,41427.0,41409.0,0.00127526]
[1642716267029,0.18614808,41427.0,41415.0,0.21918625]
[1642716267030,0.28032757,41420.0,41415.0,0.21918625]
[1642716267227,0.03655693,41428.0,41417.0,0.0012401]
[1642716267228,0.03534694,41428.0,41417.0,0.0012401]
[1642716267626,0.03534694,41428.0,41417.0,0.2949237]
[1642716267825,0.03534694,41428.0,41422.0,0.00125667]
[1642716268081,0.03534694,41428.0,41423.0,0.18184858]
[1642716268278,0.03534694,41428.0,41411.0,0.0408]
[1642716268279,1.24729914,41424.0,41411.0,0.0408]
[1642716268477,0.38538,41423.0,41413.0,0.22005651]
[1642716268678,0.38661677,41423.0,41405.0,0.2936836]
[1642716268879,0.38661677,41423.0,41406.0,0.00127767]
[1642716268880,0.00126899,41417.0,41406.0,0.00127767]
[1642716269077,0.00126899,41417.0,41406.0,0.12292429]
[1642716269078,0.00125281,41411.0,41406.0,0.12292429]
[1642716269277,0.15528837,41414.0,41406.0,0.12292429]
[1642716269478,0.00125967,41418.0,41406.0,0.12292429]
[1642716269782,0.00120411,41412.0,41406.0,0.12292429]
[1642716269980,0.00120411,41412.0,41409.0,0.19316332]
[1642716270286,0.00120411,41412.0,41411.0,0.00121344]
[1642716270479,4.11e-06,41412.0,41411.0,1.43569704]
[1642716270778,0.28156013,41426.0,41423.0,0.59200699]
[1642716270979,0.28156013,41426.0,41425.0,0.00126506]
[1642716271180,0.28156013,41426.0,41424.0,0.12292429]
[1642716271381,0.28156013,41426.0,41423.0,0.49201128]
[1642716271820,0.28156013,41426.0,41423.0,1.28e-06]
[1642716272021,0.00125588,41427.0,41423.0,1.28e-06]
[1642716272022,0.38538,41425.0,41423.0,1.28e-06]
[1642716272620,0.38662918,41424.0,41423.0,1.28e-06]
[1642716272820,0.38662918,41424.0,41403.0,0.37309757]
[1642716272821,0.00128836,41418.0,41403.0,0.37309757]
[1642716273120,0.00128836,41418.0,41400.0,0.04202196]
[1642716273121,0.25211812,41408.0,41400.0,0.04202196]
[1642716273321,0.25211812,41408.0,41404.0,7.92739]
[1642716273620,0.25211812,41408.0,41406.0,7.92739]
[1642716273923,0.25211812,41408.0,41406.0,3.92355]
[1642716274123,0.2533457,41408.0,41402.0,0.00101529]
[1642716274320,0.31609389,41419.0,41409.0,1.11728795]
[1642716274519,0.31609389,41419.0,41406.0,1.10838795]
[1642716274520,0.1632038,41408.0,41406.0,1.10838795]
[1642716274821,0.00121934,41414.0,41407.0,0.94418415]
[1642716275221,0.00121934,41414.0,41408.0,0.94418415]
[1642716275515,0.1,41410.0,41406.0,0.001]
[1642716275714,0.38660183,41409.0,41390.0,0.31801221]
[1642716275914,0.00121823,41408.0,41403.0,0.00101527]
[1642716276113,0.635384,41404.0,41403.0,0.00101527]
[1642716276316,0.38401817,41404.0,41403.0,0.55101527]
[1642716276514,0.00247665,41420.0,41403.0,1.35138682]
[1642716276713,0.0012039,41420.0,41415.0,0.24474263]
[1642716276915,0.03615662,41425.0,41416.0,0.385389]
[1642716277113,0.03615662,41425.0,41411.0,0.00129317]
[1642716277317,0.03615662,41425.0,41417.0,0.00121799]
[1642716277513,0.03615662,41425.0,41418.0,2.94263083]
[1642716277717,0.03615662,41425.0,41422.0,0.00122783]
[1642716277915,0.03615662,41425.0,41423.0,0.250659]
[1642716278315,0.00481489,41434.0,41424.0,1.48654452]
[1642716278517,0.00481489,41434.0,41433.0,0.00127652]
[1642716278717,0.00481489,41434.0,41433.0,1.38066394]
[1642716278915,0.00481489,41434.0,41433.0,1.43066394]
[1642716279114,4.89e-06,41434.0,41433.0,1.18606452]
[1642716279319,0.18172124,41443.0,41439.0,0.0012673]
[1642716279518,0.0048151,41442.0,41440.0,0.385176]
[1642716279719,0.0048151,41442.0,41441.0,0.00125454]
[1642716279917,0.0048151,41442.0,41441.0,1.48664354]
[1642716279918,5.1e-06,41442.0,41441.0,1.48664354]
[1642716280123,0.01207,41466.0,41441.0,1.48664354]
[1642716280124,0.17435629,41459.0,41442.0,0.35900815]
[1642716280324,0.27488833,41460.0,41450.0,0.19582376]
[1642716280518,0.26429745,41460.0,41458.0,0.1942622]
[1642716280719,0.385389,41459.0,41449.0,0.1494236]
[1642716280920,0.26429745,41460.0,41441.0,0.007]
[1642716280921,0.26429745,41460.0,41442.0,0.16893448]
[1642716281120,0.26429745,41460.0,41441.0,0.007]
[1642716281121,0.0012446,41455.0,41441.0,0.007]
[1642716281319,0.18978179,41446.0,41441.0,0.007]
[1642716281521,0.385389,41445.0,41428.0,0.300289]
[1642716281720,0.2726042,41445.0,41435.0,0.20413919]
[1642716282120,0.3726042,41445.0,41435.0,0.20413919]
[1642716282321,0.3726042,41445.0,41435.0,0.20713919]
[1642716282520,0.3726042,41445.0,41442.0,0.18311167]
[1642716282723,0.385389,41444.0,41435.0,0.003]
[1642716282986,0.00090427,41444.0,41435.0,0.003]
[1642716283175,1.1,41442.0,41422.0,0.05]
[1642716283377,1.1,41442.0,41408.0,0.0408]
[1642716283378,0.00122222,41437.0,41423.0,0.300289]
[1642716283574,0.00122222,41437.0,41419.0,0.00121637]
[1642716283575,0.0012209,41432.0,41419.0,0.00121637]
[1642716283775,0.2767967,41424.0,41419.0,0.00121637]
[1642716283974,0.1779814,41428.0,41419.0,0.00121637]
[1642716284273,0.0012209,41432.0,41423.0,0.00029846]
[1642716284681,0.385389,41428.0,41423.0,0.00029846]
[1642716284876,1.370801,41424.0,41423.0,8.46e-06]
[1642716285077,1.370801,41424.0,41410.0,0.00124463]
[1642716285078,1.485389,41420.0,41405.0,0.00120226]
[1642716285276,0.00129788,41416.0,41399.0,0.001]
[1642716285477,0.30140481,41406.0,41399.0,0.0022775]
[1642716285678,0.385389,41405.0,41399.0,0.001]
[1642716285975,0.00128853,41409.0,41399.0,0.001]
[1642716285976,0.29786656,41404.0,41399.0,0.001]
[1642716286177,0.00128853,41409.0,41399.0,0.001]
[1642716286378,0.00128853,41409.0,41400.0,0.0011]
[1642716286822,0.485389,41408.0,41400.0,0.0011]
[1642716287027,0.34397091,41405.0,41400.0,0.0011]
[1642716287223,0.385389,41404.0,41400.0,0.0011]
[1642716287526,1.1,41420.0,41409.0,0.23127273]
[1642716287723,1.1,41420.0,41400.0,0.29951937]
[1642716287724,0.385389,41413.0,41400.0,0.29951937]
[1642716287923,0.17036764,41414.0,41403.0,0.05]
[1642716288128,0.00122099,41415.0,41403.0,0.05]
[1642716288525,0.0408,41424.0,41406.0,0.0012779]
[1642716288726,0.00128614,41425.0,41419.0,0.20149579]
[1642716289325,0.26845955,41425.0,41419.0,0.20149579]
[1642716289525,0.26717341,41425.0,41419.0,0.20149579]
[1642716289925,0.00121498,41432.0,41411.0,0.0012979]
[1642716289926,0.0012643,41435.0,41424.0,0.00126786]
[1642716290127,0.0012643,41435.0,41418.0,1.10128905]
[1642716290128,0.01206,41448.0,41426.0,0.00126127]
[1642716290327,0.00120388,41429.0,41421.0,0.31470116]
[1642716290568,0.00481446,41439.0,41429.0,1.10183952]
[1642716290771,0.00481446,41439.0,41429.0,1.44849751]
[1642716290966,0.01206,41445.0,41434.0,0.20179209]
[1642716291167,0.16206,41448.0,41441.0,0.23700983]
[1642716291368,0.16206,41448.0,41432.0,0.00127614]
[1642716291369,0.1552308,41448.0,41432.0,0.00127614]
[1642716291571,0.18940135,41445.0,41432.0,0.05127614]
[1642716291767,0.18440135,41445.0,41435.0,0.00125216]
[1642716292068,0.00121374,41453.0,41435.0,0.00125216]
[1642716292470,0.00372386,41467.0,41435.0,0.00125216]
[1642716292471,0.01206,41454.0,41447.0,0.32019639]
[1642716292670,0.01206,41457.0,41444.0,0.00120383]
[1642716292870,0.18861702,41457.0,41444.0,0.00120383]
[1642716293072,0.17655702,41457.0,41444.0,0.00120383]
[1642716293271,0.18861702,41457.0,41444.0,0.05120383]
[1642716293469,0.17655702,41457.0,41444.0,0.05120383]
[1642716293869,0.17655702,41457.0,41444.0,0.05085383]
[1642716294070,0.00126511,41455.0,41439.0,0.00041844]
[1642716294328,0.00126511,41455.0,41437.0,0.0011452]
[1642716294329,0.00127979,41450.0,41437.0,0.0011452]
[1642716294528,0.18477792,41446.0,41437.0,0.000326]
[1642716294727,0.385389,41445.0,41437.0,0.000326]
[1642716294926,0.05,41445.0,41443.0,0.50315747]
[1642716295127,0.05,41445.0,41437.0,1.1]
[1642716295128,3.87e-06,41446.0,41445.0,1.33431201]
[1642716295329,8.64e-06,41452.0,41446.0,0.034499]
[1642716295527,8.64e-06,41452.0,41451.0,0.0512521]
[1642716295733,8.64e-06,41452.0,41451.0,0.77367256]
[1642716295931,0.01206,41471.0,41451.0,0.4365841]
[1642716296128,0.01206,41471.0,41456.0,0.00127349]
[1642716296327,0.01206,41471.0,41457.0,0.25010924]
[1642716296529,0.01205,41470.0,41458.0,0.33708846]
[1642716296728,0.01205,41470.0,41457.0,0.25010924]
[1642716296729,0.01205,41470.0,41461.0,0.00124904]
[1642716297028,0.01205,41470.0,41463.0,0.060299]
[1642716297428,0.25233,41474.0,41464.0,0.64024484]
[1642716297632,0.23528,41474.0,41473.0,1.62705377]
[1642716297831,0.01005351,41476.0,41473.0,2.01244277]
[1642716298095,3.51e-06,41476.0,41474.0,0.034168]
[1642716298294,3.51e-06,41476.0,41475.0,0.00121929]
[1642716298494,0.01205,41499.0,41475.0,0.38658829]
[1642716298690,0.01205,41496.0,41482.0,0.00123193]
[1642716298895,0.385389,41492.0,41475.0,0.00129462]
[1642716299092,0.385389,41492.0,41473.0,0.003]
[1642716299093,0.00126681,41486.0,41473.0,0.003]
[1642716299292,0.61804649,41474.0,41473.0,0.003]
[1642716299496,0.54843549,41474.0,41466.0,0.05]
[1642716299693,0.73452746,41473.0,41462.0,6.03e-06]
[1642716299894,0.385389,41469.0,41458.0,0.00124352]
[1642716300093,0.39913846,41473.0,41458.0,0.00124352]
[1642716300094,0.05,41470.0,41458.0,0.00124352]
[1642716300494,0.032,41469.0,41458.0,0.00124352]
[1642716300694,0.54232946,41465.0,41455.0,0.05]
[1642716300897,0.54232946,41465.0,41440.0,0.00121908]
[1642716300898,0.0164,41460.0,41440.0,0.00121908]
[1642716301102,0.00122637,41455.0,41440.0,0.00121908]
[1642716301296,0.413839,41454.0,41440.0,0.00121908]
[1642716301493,0.00120205,41451.0,41432.0,0.0011]
[1642716301720,0.00127027,41445.0,41432.0,0.0011]
[1642716301931,0.385389,41441.0,41432.0,0.0011]
[1642716302120,1.1,41435.0,41418.0,0.00023894]
[1642716302319,0.38666466,41434.0,41418.0,0.00023894]
[1642716302520,0.00995007,41433.0,41418.0,0.00023894]
[1642716302719,0.18660133,41426.0,41418.0,0.00023894]
[1642716302921,0.385389,41422.0,41418.0,0.00023894]
[1642716303120,0.385389,41421.0,41418.0,0.00023894]
[1642716303325,0.04209279,41428.0,41418.0,0.00023894]
[1642716303326,0.0408,41428.0,41426.0,0.56864412]
[1642716303521,0.10995007,41434.0,41426.0,0.56864412]
[1642716303821,0.00123197,41432.0,41426.0,0.56864412]
[1642716304020,0.0408,41439.0,41427.0,0.2748743]
[1642716304021,0.24583747,41436.0,41427.0,0.2748743]
[1642716304319,0.24583747,41436.0,41426.0,0.56864412]
[1642716304520,0.013,41432.0,41426.0,0.56864412]
[1642716304921,0.013,41432.0,41426.0,0.78370895]
[1642716305120,0.003,41432.0,41426.0,0.78370895]
[1642716305322,0.003,41432.0,41428.0,0.27542283]